bitfinex/quotes_BTCUSD_20250719
["timestamp","ask_amount","ask_price","bid_price","bid_amount"]
[1752909419976,0.26897619,118290.0,118280.0,0.4792624]
[1752909420227,0.26897619,118290.0,118280.0,0.47080818]
[1752909420411,0.26897619,118290.0,118280.0,0.46235388]
[1752909420637,0.26897619,118290.0,118280.0,0.47080818]
[1752909421732,0.26897619,118290.0,118280.0,0.45389951]
[1752909422001,0.27742991,118290.0,118280.0,0.45389951]
[1752909422414,0.26897619,118290.0,118280.0,0.47080818]
[1752909422647,0.26897619,118290.0,118280.0,0.4792624]
[1752909423505,0.26897619,118290.0,118280.0,0.47080818]
[1752909423906,0.26052261,118290.0,118280.0,0.47080818]
[1752909424112,0.06040574,118290.0,118280.0,0.47080789]
[1752909424322,0.26052261,118290.0,118280.0,0.48235204]
[1752909425023,0.26052261,118290.0,118280.0,0.47389789]
[1752909425246,0.26052261,118290.0,118280.0,0.46544367]
[1752909425463,0.06040574,118290.0,118280.0,0.47389782]
[1752909425678,0.05195223,118290.0,118280.0,0.45698937]
[1752909425891,0.26052261,118290.0,118280.0,0.46544352]
[1752909426104,0.26052261,118290.0,118280.0,0.46544359]
[1752909426925,0.26052261,118290.0,118280.0,0.46544367]
[1752909427360,0.26052261,118290.0,118280.0,0.47389789]
[1752909427573,0.26052261,118290.0,118280.0,0.46544367]
[1752909427793,0.26897619,118290.0,118280.0,0.46544367]
[1752909428555,0.26897619,118290.0,118280.0,0.50719789]
[1752909429042,0.26052261,118290.0,118280.0,0.50719789]
[1752909429583,0.26052261,118290.0,118280.0,0.56987603]
[1752909429821,0.26052261,118290.0,118280.0,0.50719789]
[1752909432197,0.26897626,118290.0,118280.0,0.49874367]
[1752909432447,0.26052261,118290.0,118280.0,0.50719789]
[1752909433620,0.26052261,118290.0,118280.0,0.51565204]
[1752909434265,0.26052261,118290.0,118280.0,0.50719789]
[1752909434706,0.26052261,118290.0,118280.0,0.49874367]
[1752909435353,0.26897626,118290.0,118280.0,0.49874367]
[1752909435579,0.26052261,118290.0,118280.0,0.49874367]
[1752909435807,0.26897626,118290.0,118280.0,0.49874367]
[1752909436493,0.26052261,118290.0,118280.0,0.49874367]
[1752909436720,0.26052261,118290.0,118280.0,0.50719789]
[1752909437761,0.26052261,118290.0,118280.0,0.49874367]
[1752909437970,0.26897626,118290.0,118280.0,0.49874367]
[1752909438131,0.26052261,118290.0,118280.0,0.49874367]
[1752909438540,0.26052261,118290.0,118280.0,0.50719789]
[1752909438740,0.26052261,118290.0,118280.0,0.49874367]
[1752909438936,0.26897626,118290.0,118280.0,0.49874367]
[1752909439146,0.26052261,118290.0,118280.0,0.49874367]
[1752909439895,0.26897626,118290.0,118280.0,0.481835]
[1752909440323,0.26897626,118290.0,118280.0,0.49028937]
[1752909440944,0.26897626,118290.0,118280.0,0.49874367]
[1752909441445,0.26052261,118290.0,118280.0,0.49874367]
[1752909441655,0.26897619,118290.0,118280.0,0.49874367]
[1752909442049,0.26897619,118290.0,118280.0,0.50719789]
[1752909442273,0.26897619,118290.0,118280.0,0.49874367]
[1752909442710,0.27742998,118290.0,118280.0,0.49874367]
[1752909442898,0.26052339,118290.0,118280.0,0.481835]
[1752909443810,0.43993587,118290.0,118280.0,0.476795]
[1752909444026,0.43993587,118290.0,118280.0,0.47679507]
[1752909444450,0.43993587,118290.0,118280.0,0.46834056]
[1752909444667,0.43993587,118290.0,118280.0,0.47679507]
[1752909445011,0.43993587,118290.0,118280.0,0.48524951]
[1752909445438,0.43993587,118290.0,118280.0,0.47679507]
[1752909445653,0.43993587,118290.0,118280.0,0.48524951]
[1752909446067,0.43993587,118290.0,118280.0,0.47679507]
[1752909448453,0.42423587,118290.0,118280.0,0.47679507]
[1752909448652,0.42423587,118290.0,118280.0,0.48524951]
[1752909449081,0.42423587,118290.0,118280.0,0.47679507]
[1752909449293,0.42423587,118290.0,118280.0,0.48524951]
[1752909449710,0.42423587,118290.0,118280.0,0.47679507]
[1752909450702,0.42114587,118290.0,118280.0,0.47890507]
[1752909451328,0.42114587,118290.0,118280.0,0.48735951]
[1752909453305,0.42114587,118290.0,118280.0,0.47890507]
[1752909453939,0.221029,118290.0,118280.0,0.47890507]
[1752909454146,0.42114587,118290.0,118280.0,0.47890507]
[1752909454353,0.42114587,118290.0,118280.0,0.48735951]
[1752909455878,0.42114587,118290.0,118280.0,0.47890507]
[1752909456502,0.42114587,118290.0,118280.0,0.48735951]
[1752909457470,0.42114587,118290.0,118280.0,0.47890507]
[1752909458531,0.42114587,118290.0,118280.0,0.48735951]
[1752909458819,0.41269229,118290.0,118280.0,0.47890507]
[1752909460354,0.4042385,118290.0,118280.0,0.47045056]
[1752909460576,0.4042385,118290.0,118280.0,0.30136027]
[1752909462334,0.39273286,118290.0,118280.0,0.30136027]
[1752909463012,0.61103973,118290.0,118280.0,0.16881027]
[1752909463231,0.61103973,118290.0,118280.0,0.24873028]
[1752909463446,0.61103973,118290.0,118280.0,0.29873027]
[1752909464049,0.41092286,118290.0,118280.0,0.29873027]
[1752909470807,0.42156999,118290.0,118280.0,0.29873027]
[1752909473140,0.42156999,118290.0,118280.0,0.47627507]
[1752909473349,0.40636999,118290.0,118280.0,0.47627507]
[1752909473564,0.40636999,118290.0,118280.0,0.46782056]
[1752909476456,0.40337999,118290.0,118280.0,0.46782056]
[1752909477073,0.40337999,118290.0,118280.0,0.47627507]
[1752909477278,0.40337999,118290.0,118280.0,0.46782056]
[1752909477903,0.40337999,118290.0,118280.0,0.47627507]
[1752909478125,0.40337999,118290.0,118280.0,0.46782056]
[1752909480632,0.40337999,118290.0,118280.0,0.46983056]
[1752909481221,0.40337999,118290.0,118280.0,0.47828507]
[1752909481457,0.40337999,118290.0,118280.0,0.46983056]
[1752909483416,0.41183364,118290.0,118280.0,0.478285]
[1752909484027,0.41183364,118290.0,118280.0,0.47828507]
[1752909484480,0.41183364,118290.0,118280.0,0.48673951]
[1752909484692,0.41183364,118290.0,118280.0,0.47828507]
[1752909485131,0.41183364,118290.0,118280.0,0.48673951]
[1752909485385,0.41183364,118290.0,118280.0,0.49519388]
[1752909485598,0.41183364,118290.0,118280.0,0.48673951]
[1752909485822,0.41183364,118290.0,118280.0,0.49519388]
[1752909486035,0.41183364,118290.0,118280.0,0.48673951]
[1752909486267,0.41183364,118290.0,118280.0,0.47828507]
[1752909486498,0.02614057,118290.0,118280.0,0.48979937]
[1752909486729,0.24112431,118290.0,118280.0,0.48979937]
[1752909486943,0.24112431,118290.0,118280.0,0.49825359]
[1752909487609,0.24112431,118290.0,118280.0,0.51516182]
[1752909487838,0.24112431,118290.0,118280.0,0.50670774]
[1752909488081,0.24957803,118290.0,118280.0,0.49825359]
[1752909488801,0.24957803,118290.0,118280.0,0.50670774]
[1752909489102,0.24957803,118290.0,118280.0,0.49825359]
[1752909489586,0.24112424,118290.0,118280.0,0.51365359]
[1752909489779,0.24957796,118290.0,118280.0,0.52210774]
[1752909490014,0.24112424,118290.0,118280.0,0.52210774]
[1752909490468,0.23267066,118290.0,118280.0,0.53056175]
[1752909490699,0.02410035,118290.0,118280.0,0.53166175]
[1752909490912,0.02410028,118290.0,118280.0,0.54686175]
[1752909491117,0.23267037,118290.0,118280.0,0.54686175]
[1752909491345,0.23267037,118290.0,118280.0,0.57223675]
[1752909491989,0.24112374,118290.0,118280.0,0.57223675]
[1752909492195,0.24957718,118290.0,118280.0,0.57223675]
[1752909493248,0.25803083,118290.0,118280.0,0.57223675]
[1752909493873,0.25803076,118290.0,118280.0,0.57223675]
[1752909494289,0.05791389,118290.0,118280.0,0.57223675]
[1752909494528,0.25803076,118290.0,118280.0,0.57223675]
[1752909496780,0.24957718,118290.0,118280.0,0.57223675]
[1752909497820,0.24112374,118290.0,118280.0,0.57223675]
[1752909498331,0.24957718,118290.0,118280.0,0.57223675]
[1752909498832,0.25803076,118290.0,118280.0,0.57223675]
[1752909499047,0.25803076,118290.0,118280.0,0.55703675]
[1752909499261,0.24957718,118290.0,118280.0,0.55703675]
[1752909499583,0.24957718,118290.0,118280.0,0.61971489]
[1752909499800,0.24957718,118290.0,118280.0,0.55703675]
[1752909500427,0.25803069,118290.0,118280.0,0.55703675]
[1752909502045,0.04946031,118290.0,118280.0,0.55703675]
[1752909502271,0.25803076,118290.0,118280.0,0.55703675]
[1752909502937,0.24957718,118290.0,118280.0,0.55703675]
[1752909503164,0.25803076,118290.0,118280.0,0.55703675]
[1752909503710,0.24957718,118290.0,118280.0,0.55703675]
[1752909503927,0.25803076,118290.0,118280.0,0.55703675]
[1752909504564,0.04946031,118290.0,118280.0,0.55703675]
[1752909504767,0.04100687,118290.0,118280.0,0.55703675]
[1752909504975,0.24957718,118290.0,118280.0,0.55703675]
[1752909505184,0.04946031,118290.0,118280.0,0.55703675]
[1752909505437,0.24957725,118290.0,118280.0,0.55703675]
[1752909507262,0.04946038,118290.0,118280.0,0.55703675]
[1752909507487,0.24957725,118290.0,118280.0,0.55703675]
[1752909508461,0.24112374,118290.0,118280.0,0.55703675]
[1752909508676,0.01564713,118290.0,118280.0,0.64121326]
[1752909508896,0.01564713,118290.0,118280.0,1.04417013]
[1752909509324,0.01564713,118290.0,118280.0,0.84405326]
[1752909509549,0.01564713,118290.0,118280.0,1.04417013]
[1752909509781,0.01364713,118290.0,118280.0,1.04417013]
[1752909510005,0.01464713,118290.0,118280.0,1.04417013]
[1752909510227,0.01164713,118290.0,118280.0,1.04417013]
[1752909510446,0.01364713,118290.0,118280.0,1.04417013]
[1752909511201,0.02210028,118290.0,118280.0,0.84405326]
[1752909511425,0.02210028,118290.0,118280.0,1.04417013]
[1752909511643,0.01364713,118290.0,118280.0,1.04417013]
[1752909511852,0.02210028,118290.0,118280.0,1.04417013]
[1752909512216,0.02210028,118290.0,118280.0,0.84405326]
[1752909512435,0.02210028,118290.0,118280.0,1.04417013]
[1752909513087,0.01364713,118290.0,118280.0,0.84405326]
[1752909513520,0.02210028,118290.0,118280.0,1.04417013]
[1752909514023,0.02110028,118290.0,118280.0,1.04417013]
[1752909514227,0.01910028,118290.0,118280.0,1.04417013]
[1752909514641,0.02010028,118290.0,118280.0,1.04417013]
[1752909516694,0.02010028,118290.0,118280.0,0.84204326]
[1752909516902,0.02855357,118290.0,118280.0,0.97438362]
[1752909517104,0.02010028,118290.0,118280.0,0.97438362]
[1752909517316,0.0285535,118290.0,118280.0,0.97132362]
[1752909517604,0.02010028,118290.0,118280.0,0.97132362]
[1752909517857,0.01164713,118290.0,118280.0,0.97132362]
[1752909518989,0.01064713,118290.0,118280.0,0.97132362]
[1752909519292,0.02539824,118300.0,118290.0,0.2444365]
[1752909519497,0.02544802,118300.0,118290.0,0.45958686]
[1752909519763,0.02544802,118300.0,118290.0,0.65970373]
[1752909519967,0.02544802,118300.0,118290.0,0.48495886]
[1752909520553,0.02644802,118300.0,118290.0,0.53918363]
[1752909520791,0.03706266,118300.0,118290.0,0.49300549]
[1752909521183,0.03706266,118300.0,118290.0,0.50145893]
[1752909521321,0.20612436,118300.0,118290.0,0.50145893]
[1752909521914,0.39778865,118300.0,118290.0,0.49300563]
[1752909522458,0.39778865,118300.0,118290.0,0.50145921]
[1752909523811,0.39778865,118300.0,118290.0,0.48495921]
[1752909524014,0.39778865,118300.0,118290.0,0.49341272]
[1752909526377,0.38933593,118300.0,118290.0,0.48495921]
[1752909527117,0.38933593,118300.0,118290.0,0.49341272]
[1752909527342,0.37872129,118300.0,118290.0,0.49341272]
[1752909527551,0.37872129,118300.0,118290.0,0.50186616]
[1752909527768,0.21811231,118300.0,118290.0,0.50186616]
[1752909527973,0.21811231,118300.0,118290.0,0.47649373]
[1752909528399,0.22656532,118300.0,118290.0,0.47649373]
[1752909528602,0.22656532,118300.0,118290.0,0.50979373]
[1752909529631,0.02644845,118300.0,118290.0,0.50979373]
[1752909529816,0.22656532,118300.0,118290.0,0.50979373]
[1752909530028,0.60599458,118300.0,118290.0,0.363247]
[1752909530220,0.60599458,118300.0,118290.0,0.492847]
[1752909530383,0.40587771,118300.0,118290.0,0.492847]
[1752909530790,0.40587771,118300.0,118290.0,0.50130044]
[1752909531109,0.24526909,118300.0,118290.0,0.50975381]
[1752909531274,0.23681601,118300.0,118290.0,0.50975345]
[1752909532779,0.228363,118300.0,118290.0,0.50975345]
[1752909533572,0.23681601,118300.0,118290.0,0.50975345]
[1752909535162,0.24526909,118300.0,118290.0,0.50975345]
[1752909535499,0.23681551,118300.0,118290.0,0.52545345]
[1752909536437,0.23681551,118300.0,118290.0,0.72825345]
[1752909536782,0.03669864,118300.0,118290.0,0.72825345]
[1752909536933,0.03669857,118300.0,118290.0,0.72825345]
[1752909537134,0.04515151,118300.0,118290.0,0.72825345]
[1752909538522,0.01979298,118300.0,118290.0,0.72825345]
[1752909538736,0.02824585,118300.0,118290.0,0.72825345]
[1752909538939,0.04515144,118300.0,118290.0,0.72825345]
[1752909539134,0.24526831,118300.0,118290.0,0.71255345]
[1752909539810,0.23681529,118300.0,118290.0,0.72825345]
[1752909540015,0.2283625,118300.0,118290.0,0.72825345]
[1752909540193,0.23681529,118300.0,118290.0,0.72825345]
[1752909541238,0.23681529,118300.0,118290.0,0.74485345]
[1752909542221,0.00108978,118300.0,118290.0,1.28497032]
[1752909542650,0.00108978,118300.0,118290.0,1.31034032]
[1752909546790,0.00108978,118300.0,118290.0,1.11022345]
[1752909546995,0.00108978,118300.0,118290.0,1.31034032]
[1752909548442,0.00108978,118300.0,118290.0,1.32488117]
[1752909550034,0.00108978,118300.0,118290.0,1.1247643]
[1752909550255,0.00108978,118300.0,118290.0,1.32488117]
[1752909553548,0.00108978,118300.0,118290.0,1.32588117]
[1752909554296,8.978e-05,118300.0,118290.0,1.32588117]
[1752909559441,8.978e-05,118300.0,118290.0,1.1257643]
[1752909560068,8.978e-05,118300.0,118290.0,1.32588117]
[1752909564353,8.978e-05,118300.0,118290.0,1.1257643]
[1752909564556,8.978e-05,118300.0,118290.0,1.32588117]
[1752909566626,8.978e-05,118300.0,118290.0,1.32892117]
[1752909568278,8.978e-05,118300.0,118290.0,1.1288043]
[1752909568493,8.978e-05,118300.0,118290.0,1.32892117]
[1752909570075,8.978e-05,118300.0,118290.0,1.1288043]
[1752909570327,8.978e-05,118300.0,118290.0,1.32892117]
[1752909571701,8.978e-05,118300.0,118290.0,1.1122043]
[1752909571997,8.978e-05,118300.0,118290.0,1.31232117]
[1752909589679,8.978e-05,118300.0,118290.0,1.31432117]
[1752909590504,8.978e-05,118300.0,118290.0,1.33002117]
[1752909592827,8.978e-05,118300.0,118290.0,1.31432117]
[1752909597355,8.978e-05,118300.0,118290.0,1.1142043]
[1752909597706,8.978e-05,118300.0,118290.0,1.31432117]
[1752909599246,8.978e-05,118300.0,118290.0,1.29862117]
[1752909605556,0.01658978,118300.0,118290.0,1.0985043]
[1752909605767,0.01658978,118300.0,118290.0,1.29862117]
[1752909608723,8.978e-05,118300.0,118290.0,1.29862117]
[1752909611085,8.978e-05,118300.0,118290.0,1.0985043]
[1752909611223,8.978e-05,118300.0,118290.0,1.29862117]
[1752909613221,8.978e-05,118300.0,118290.0,1.0985043]
[1752909613430,8.978e-05,118300.0,118290.0,1.29862117]
[1752909615318,8.978e-05,118300.0,118290.0,1.0985043]
[1752909615522,8.978e-05,118300.0,118290.0,1.29862117]
[1752909627762,8.978e-05,118300.0,118290.0,1.0985043]
[1752909627969,0.01713978,118300.0,118290.0,1.29862117]
[1752909629357,0.01518978,118300.0,118290.0,1.29862117]
[1752909629567,0.01518978,118300.0,118290.0,1.0985043]
[1752909629706,0.01518978,118300.0,118290.0,1.29862117]
[1752909638030,0.01518978,118300.0,118290.0,1.0985043]
[1752909638240,8.978e-05,118300.0,118290.0,1.29862117]
[1752909638444,3.85e-06,118300.0,118290.0,1.29862117]
[1752909645226,3.85e-06,118300.0,118290.0,1.31462117]
[1752909646080,3.85e-06,118300.0,118290.0,1.1145043]
[1752909646282,3.85e-06,118300.0,118290.0,1.31462117]
[1752909648377,0.04990198,118310.0,118290.0,1.31462117]
[1752909648616,0.04990206,118310.0,118300.0,0.66136049]
[1752909648816,0.05203206,118310.0,118300.0,0.66121722]
[1752909649281,0.06893608,118310.0,118300.0,0.66121722]
[1752909649922,0.06893601,118310.0,118300.0,0.66121722]
[1752909650590,0.060484,118310.0,118300.0,0.66121722]
[1752909650810,0.06993608,118310.0,118300.0,0.66121722]
[1752909651266,0.05303206,118310.0,118300.0,0.66121722]
[1752909652787,0.06148407,118310.0,118300.0,0.66121722]
[1752909653401,0.06148407,118310.0,118300.0,0.46110035]
[1752909653625,0.05303206,118310.0,118300.0,0.46110035]
[1752909653959,0.06148407,118310.0,118300.0,0.46110035]
[1752909654526,0.061484,118310.0,118300.0,0.46110035]
[1752909655904,0.061484,118310.0,118300.0,0.46407035]
[1752909656680,0.061484,118310.0,118300.0,0.66418722]
[1752909657305,0.061484,118310.0,118300.0,0.86698722]
[1752909657540,0.05193381,118310.0,118300.0,0.86698722]
[1752909657992,0.05193381,118310.0,118300.0,0.66687035]
[1752909658681,0.06038589,118310.0,118300.0,0.66687035]
[1752909658902,0.04348187,118310.0,118300.0,0.66687035]
[1752909659371,0.05193359,118310.0,118300.0,0.86698722]
[1752909659611,0.03543351,118310.0,118300.0,0.86698722]
[1752909659838,0.03543351,118310.0,118300.0,0.66687035]
[1752909660061,0.04388545,118310.0,118300.0,0.66687035]
[1752909660299,0.03543351,118310.0,118300.0,0.66687035]
[1752909661262,0.24400232,118310.0,118300.0,0.66687035]
[1752909662847,0.04388545,118310.0,118300.0,0.66687035]
[1752909663368,0.03543351,118310.0,118300.0,0.66687035]
[1752909663832,0.04388545,118310.0,118300.0,0.66687035]
[1752909665938,0.06078954,118310.0,118300.0,0.66687035]
[1752909666147,0.27690641,118310.0,118300.0,0.66390035]
[1752909666506,0.26845433,118310.0,118300.0,0.66390035]
[1752909666949,0.26000232,118310.0,118300.0,0.66390035]
[1752909667732,0.26845433,118310.0,118300.0,0.66390035]
[1752909668373,0.27690641,118310.0,118300.0,0.66390035]
[1752909670013,0.26845433,118310.0,118300.0,0.66390035]
[1752909671768,0.27690648,118310.0,118300.0,0.66390035]
[1752909672524,0.26845433,118310.0,118300.0,0.66390035]
[1752909673838,0.27690655,118310.0,118300.0,0.66390035]
[1752909674064,0.05233746,118310.0,118300.0,0.66697035]
[1752909674266,0.25245433,118310.0,118300.0,0.66697035]
[1752909674484,0.26090641,118310.0,118300.0,0.66697035]
[1752909676018,0.42995483,118310.0,118300.0,0.66697049]
[1752909676224,0.42150289,118310.0,118300.0,0.66697049]
[1752909676428,0.41305088,118310.0,118300.0,0.65851792]
[1752909676729,0.41305088,118310.0,118300.0,0.66697071]
[1752909676931,0.41305088,118310.0,118300.0,0.67542343]
[1752909677277,0.24400347,118310.0,118300.0,0.68387565]
[1752909677503,0.41305088,118310.0,118300.0,0.64699491]
[1752909677706,0.42935088,118310.0,118300.0,0.66390042]
[1752909678064,0.42935088,118310.0,118300.0,0.67235307]
[1752909678274,0.26030347,118310.0,118300.0,0.67235307]
[1752909678759,0.26030332,118310.0,118300.0,0.68080565]
[1752909679510,0.26875561,118310.0,118300.0,0.68080565]
[1752909680132,0.27720798,118310.0,118300.0,0.67235307]
[1752909680347,0.27720798,118310.0,118300.0,0.68080565]
[1752909680643,0.27720798,118310.0,118300.0,0.67235307]
[1752909681094,0.26344332,118310.0,118300.0,0.68080565]
[1752909682399,0.2549911,118310.0,118300.0,0.68080565]
[1752909682744,0.05487423,118310.0,118300.0,0.68080565]
[1752909682959,0.2549911,118310.0,118300.0,0.68080565]
[1752909683182,0.26030332,118310.0,118300.0,0.68080565]
[1752909683395,0.22055082,118310.0,118300.0,0.68387565]
[1752909683615,0.22055075,118310.0,118300.0,0.68387565]
[1752909684123,0.22849866,118310.0,118300.0,0.68387565]
[1752909685911,0.2369506,118310.0,118300.0,0.68387565]
[1752909686126,0.22849866,118310.0,118300.0,0.68387565]
[1752909688074,0.23695053,118310.0,118300.0,0.68387565]
[1752909688986,0.01993,118310.0,118300.0,0.68387565]
[1752909689157,0.22849866,118310.0,118300.0,0.68387565]
[1752909689550,0.22004687,118310.0,118300.0,0.68387565]
[1752909689755,0.22849859,118310.0,118300.0,0.68387565]
[1752909690780,0.20364687,118310.0,118300.0,0.68387565]
[1752909690954,0.20151687,118310.0,118300.0,0.68387565]
[1752909691852,0.0014,118310.0,118300.0,0.68387565]
[1752909692448,0.20151687,118310.0,118300.0,0.68387565]
[1752909693255,0.0014,118310.0,118300.0,0.68387565]
[1752909695930,0.00985172,118310.0,118300.0,0.68387565]
[1752909696144,0.0014,118310.0,118300.0,0.68387565]
[1752909697364,0.21874687,118310.0,118300.0,0.68387565]
[1752909697864,0.22719859,118310.0,118300.0,0.68387565]
[1752909699314,0.02708172,118310.0,118300.0,0.68387565]
[1752909699533,0.22719859,118310.0,118300.0,0.68387565]
[1752909701006,0.23565038,118310.0,118300.0,0.68387565]
[1752909702369,0.02708172,118310.0,118300.0,0.68387565]
[1752909702623,0.22719859,118310.0,118300.0,0.68387565]
[1752909703005,0.23565046,118310.0,118300.0,0.68387565]
[1752909703280,0.22719859,118310.0,118300.0,0.68387565]
[1752909703941,0.21874687,118310.0,118300.0,0.68387565]
[1752909712185,0.0014,118310.0,118300.0,0.69947565]
[1752909712346,0.20151687,118310.0,118300.0,0.71527565]
[1752909712768,0.20151687,118310.0,118300.0,0.69947565]
[1752909713644,0.20151687,118310.0,118300.0,0.68387565]
[1752909716040,0.20151687,118310.0,118300.0,0.69947565]
[1752909716244,0.20151687,118310.0,118300.0,0.68387565]
[1752909721883,0.0014,118310.0,118300.0,0.69987565]
[1752909722380,0.0014,118310.0,118300.0,0.68387565]
[1752909726370,0.0014,118310.0,118300.0,0.88399252]
[1752909726579,0.0014,118310.0,118300.0,0.91549252]
[1752909727188,0.0014,118310.0,118300.0,0.90049252]
[1752909728422,0.0014,118310.0,118300.0,0.91549252]
[1752909728616,0.0014,118310.0,118300.0,0.90049252]
[1752909729354,0.0014,118310.0,118300.0,0.70037565]
[1752909730360,0.0014,118310.0,118300.0,0.70009565]
[1752909730804,0.0014,118310.0,118300.0,0.68359565]
[1752909733742,0.20151687,118310.0,118300.0,0.68359565]
[1752909734356,0.0014,118310.0,118300.0,0.68359565]
[1752909734503,0.20151687,118310.0,118300.0,0.68359565]
[1752909734906,0.0014,118310.0,118300.0,0.68359565]
[1752909736063,0.00985179,118310.0,118300.0,0.68359565]
[1752909736977,0.0014,118310.0,118300.0,0.68359565]
[1752909737189,0.00985172,118310.0,118300.0,0.68359565]
[1752909738129,0.0014,118310.0,118300.0,0.68359565]
[1752909740871,0.00985179,118310.0,118300.0,0.68359565]
[1752909741093,0.0014,118310.0,118300.0,0.68359565]
[1752909743326,0.0014,118310.0,118300.0,1.02359565]
[1752909743531,0.0014,118310.0,118300.0,1.22371252]
[1752909743655,0.00985172,118310.0,118300.0,1.22371252]
[1752909743850,0.00985172,118310.0,118300.0,1.02359565]
[1752909745019,0.02635172,118310.0,118300.0,1.02359565]
[1752909745746,0.03480351,118310.0,118300.0,1.02359565]
[1752909747180,0.02635172,118310.0,118300.0,1.02359565]
[1752909749349,0.03480359,118310.0,118300.0,1.02359565]
[1752909749719,0.02635172,118310.0,118300.0,1.02359565]
[1752909749935,0.03480359,118310.0,118300.0,1.02359565]
[1752909750137,0.02635172,118310.0,118300.0,1.02359565]
[1752909750886,0.00985172,118310.0,118300.0,1.02359565]
[1752909751424,0.01830359,118310.0,118300.0,1.02359565]
[1752909751635,0.00985172,118310.0,118300.0,1.02359565]
[1752909753094,0.0014,118310.0,118300.0,1.02359565]
[1752909753319,0.00985172,118310.0,118300.0,1.02359565]
[1752909754279,0.00985172,118310.0,118300.0,1.22371252]
[1752909755228,0.03330351,118310.0,118300.0,1.22371252]
[1752909755461,0.04175545,118310.0,118300.0,1.22371252]
[1752909755720,0.04175545,118310.0,118300.0,1.02359565]
[1752909756450,0.03330351,118310.0,118300.0,1.02359565]
[1752909756852,0.03330351,118310.0,118300.0,1.22371252]
[1752909757053,0.25235461,118310.0,118300.0,1.02044565]
[1752909757189,0.25980239,118310.0,118300.0,1.02044565]
[1752909757777,0.24390239,118310.0,118300.0,1.02044565]
[1752909758219,0.24390232,118310.0,118300.0,1.02044565]
[1752909758440,0.2523544,118310.0,118300.0,1.02044565]
[1752909760750,0.26080662,118310.0,118300.0,1.02044565]
[1752909761004,0.2523544,118310.0,118300.0,1.02044565]
[1752909762287,0.25235433,118310.0,118300.0,1.02365565]
[1752909763100,0.26080641,118310.0,118300.0,1.02365565]
[1752909764191,0.25235433,118310.0,118300.0,1.02365565]
[1752909764938,0.26080641,118310.0,118300.0,1.02365565]
[1752909766027,0.05223746,118310.0,118300.0,1.02365565]
[1752909766242,0.25235433,118310.0,118300.0,1.02365565]
[1752909766460,0.05223746,118310.0,118300.0,1.22377252]
[1752909766898,0.04175545,118310.0,118300.0,1.22377252]
[1752909767835,0.02675545,118310.0,118300.0,1.22377252]
[1752909768193,0.02675538,118310.0,118300.0,1.22377252]
[1752909769197,0.03520739,118310.0,118300.0,1.22377252]
[1752909769401,0.02675538,118310.0,118300.0,1.24913952]
[1752909771039,0.0014,118310.0,118300.0,1.26368037]
[1752909771242,0.0014,118310.0,118300.0,1.29428037]
[1752909771633,0.0014,118310.0,118300.0,1.27878037]
[1752909777022,0.0014,118310.0,118300.0,1.26368037]
[1752909777334,0.0014,118310.0,118300.0,1.27898037]
[1752909778667,0.0014,118310.0,118300.0,1.2587795]
[1752909782148,0.0014,118310.0,118300.0,1.0788635]
[1752909782300,0.0014,118310.0,118300.0,1.2587795]
[1752909783335,0.0014,118310.0,118300.0,1.2749795]
[1752909785947,0.0014,118310.0,118300.0,1.2587795]
[1752909786352,0.0014,118310.0,118300.0,1.0788635]
[1752909786606,0.0014,118310.0,118300.0,1.2587795]
[1752909787901,0.0014,118310.0,118300.0,1.2434795]
[1752909790628,0.0014,118310.0,118300.0,1.0635635]
[1752909790805,0.0014,118310.0,118300.0,1.2434795]
[1752909792699,0.018,118310.0,118300.0,1.2434795]
[1752909792903,0.0014,118310.0,118300.0,1.2434795]
[1752909799064,0.0014,118310.0,118300.0,1.4396955]
[1752909799274,0.0014,118310.0,118300.0,1.4551955]
[1752909799483,4.651e-05,118310.0,118300.0,1.4551955]
[1752909800714,4.651e-05,118310.0,118300.0,1.4396955]
[1752909801105,0.01534651,118310.0,118300.0,1.4233955]
[1752909801305,4.651e-05,118310.0,118300.0,1.4233955]
[1752909801501,4.651e-05,118310.0,118300.0,1.48607364]
[1752909801763,4.651e-05,118310.0,118300.0,1.4233955]
[1752909802938,4.651e-05,118310.0,118300.0,1.2434795]
[1752909803935,4.651e-05,118310.0,118300.0,1.4233955]
[1752909807700,4.651e-05,118310.0,118300.0,1.4399955]
[1752909808984,4.651e-05,118310.0,118300.0,1.4233955]
[1752909809197,4.651e-05,118310.0,118300.0,1.4399955]
[1752909809369,1.63e-06,118310.0,118300.0,1.4550955]
[1752909814805,1.63e-06,118310.0,118300.0,1.4399955]
[1752909818600,1.63e-06,118310.0,118300.0,1.4563955]
[1752909818807,1.63e-06,118310.0,118300.0,1.50267364]
[1752909818983,1.63e-06,118310.0,118300.0,1.4399955]
[1752909819437,0.02515092,118320.0,118310.0,0.77886049]
[1752909819640,0.0272007,118320.0,118310.0,1.19585077]
[1752909819843,0.0272007,118320.0,118310.0,1.19797077]
[1752909820045,0.0272007,118320.0,118310.0,1.22646577]
[1752909822884,0.0424007,118320.0,118310.0,1.22646577]
[1752909824555,0.0272007,118320.0,118310.0,1.22646577]
[1752909824757,0.0425007,118320.0,118310.0,1.22646577]
[1752909825701,0.0272007,118320.0,118310.0,1.22646577]
[1752909825822,0.0252007,118320.0,118310.0,1.22646577]
[1752909831613,0.00044978,118320.0,118310.0,1.22646577]
[1752909831828,0.00044978,118320.0,118310.0,1.25656577]
[1752909833578,0.00044978,118320.0,118310.0,1.26558221]
[1752909833780,0.00044978,118320.0,118310.0,1.26658221]
[1752909833971,1.582e-05,118320.0,118310.0,1.44649821]
[1752909834216,1.582e-05,118320.0,118310.0,1.33026035]
[1752909834456,1.582e-05,118320.0,118310.0,1.26758221]
[1752909834658,1.582e-05,118320.0,118310.0,1.44749821]
[1752909844069,0.0104,118330.0,118320.0,0.60421922]
[1752909844292,0.0104,118330.0,118320.0,0.8204395]
[1752909844479,0.0104,118330.0,118320.0,0.8233695]
[1752909845251,0.0104,118330.0,118320.0,0.5044965]
[1752909845465,0.0104,118330.0,118320.0,0.8643285]
[1752909845904,0.0104,118330.0,118320.0,0.8487285]
[1752909847460,0.0104,118330.0,118320.0,0.8643285]
[1752909848144,0.0104,118330.0,118320.0,0.8663285]
[1752909849402,0.0104,118330.0,118320.0,0.5064965]
[1752909849606,0.0104,118330.0,118320.0,0.8663285]
[1752909854675,0.0104,118330.0,118320.0,0.89229366]
[1752909858451,0.0104,118330.0,118320.0,0.87669366]
[1752909859328,0.0104,118330.0,118320.0,0.89279366]
[1752909860063,0.0104,118330.0,118320.0,0.9554718]
[1752909860277,0.0104,118330.0,118320.0,0.89279366]
[1752909862367,0.0104,118330.0,118320.0,0.87669366]
[1752909862778,0.0104,118330.0,118320.0,0.51686166]
[1752909862987,0.0104,118330.0,118320.0,0.87669366]
[1752909864024,0.0104,118330.0,118320.0,0.88115492]
[1752909871280,0.0104,118330.0,118320.0,1.08387492]
[1752909875853,0.0266,118330.0,118320.0,1.08387492]
[1752909877931,0.0266,118330.0,118320.0,0.72404292]
[1752909878134,0.0266,118330.0,118320.0,1.08387492]
[1752909878566,0.0266,118330.0,118320.0,1.07941366]
[1752909878880,0.0104,118330.0,118320.0,1.07941366]
[1752909879514,0.0104,118330.0,118320.0,1.09511366]